{"text_format":"1","workbook":"xlsx","n_sheets":11,"sheets":["Names","Data Validation","LookupDetails","VLOOKUP","HLOOKUP","LOOKUP","MATCH","INDEX","MATCH & INDEX","CHOOSE","Intersector Operator"],"not_rendered":{"charts":0,"images":0,"macros":0,"external_links":0,"defined_names":0,"comments":0,"pivot_tables":0},"unopened":[],"bounds":{"document_bytes":16777216,"sheet_cells":100000,"rows_first":2000,"rows_last":500,"rows_between":2000,"halvings":0,"cell_chars":16384,"cell_head_chars":4096},"cells_cut":0,"cells_raw":0,"read":"whole","date_system":"1900"}

{"sheet":"Names","index":0,"n_rows":1,"n_cols":1,"rows_kept":1,"cut":false,"hidden":false,"merged":[]}
["Handout"]

{"sheet":"Data Validation","index":1,"n_rows":1,"n_cols":1,"rows_kept":1,"cut":false,"hidden":false,"merged":[]}
["Handout"]

{"sheet":"LookupDetails","index":2,"n_rows":20,"n_cols":2,"rows_kept":20,"cut":false,"hidden":false,"merged":[]}
["Three basic LOOKUP functions and INDEX and CHOOSE and MATCH:"]
["VLOOKUP","Most common because most lookup tables like tax tables and price tables are orientated vertically"]
["HLOOKUP","Most tables are vertical, not horizontal, so using HLOOKUP is rare."]
["LOOKUP","Although LOOKUP was one of the first functions in a spreadsheet, the VLOOKUP can do almost everything that the LOOKUP does and more. The one thing that the LOOKUP can do that the VLOOKUP (or HLOOKUP) can't do is retrieve a value to the left or above a lookup_value column or row; it can also have a column and a row area. LOOKUP function must have the lookup_vector sorted in ascending order. LOOKUP looks up the greatest value that does not exceed a specified value anywhere in a table or range."]
["INDEX","Good when you have more than one table to look values up in. (non-contiguous ranges must be in parenthesis and stored all on the same worksheet). You can also have a table with intersection lookup values where INDEX and MATCH can be used together to look up labels and return intersection of two labels. Also can be used as a replacement for VLOOKUP when the data you want to retrieve is to the left of the lookup column."]
["CHOOSE","CHOOSE can return a value or a range from a list of 1 to 254 arguments."]
["MATCH","This function tells you the ordinal position of an item in a list"]
[]
["VLOOKUP: Looks at a cell, then takes that value and goes over to a look up table where it looks in the first column, and when it finds the corresponding value in the first columns, it moves to the left in that row and retrieves a value from one of the tables columns and brings it back to the cell."]
["Arguments","Descriptions"]
["lookup_value","The date you want to look up. This value can be a number, text, a logical value, or a name or cell reference that refers to a value."]
["table_array","The lookup table. The first column must have the values to look up such as part number, part name, tax bracket wage figures, grade number intervals. The other columns can have data that you want to retrieve such as part price, tax rates, tax paid from earlier brackets."]
["col_index_num","The number of the column containing the data you want to retrieve. The number 1 indicates that first column; 2 indicates the second column."]
["range_lookup","The type of lookup you want to perform: TRUE or FALSE. With TRUE (the default), the VLOOKUP function finds the greatest value that does not exceed the lookup_value value. When the lookup type is TRUE, the first column must be sorted in ascending order, otherwise the VLOOKUP might not retrieve the correct value. With FALSE,  the VLOOKUP looks for an exact match of the lookup_value."]
[]
["steps","VLOOKUP Algorithm"]
[1,"Looks for an exact match. If duplicate values it ignores the second value. If no match it goes to step 2"]
[2,"If the lookup_value is smaller than the first value in the first column, #N/A error is displayed. If the value is greater than  the first value in the first column, it goes to step 3"]
[3,"The VLOOKUP function continues checking until it sees a value bigger than the lookup_value, then it uses the previous row and retrieves a value from that row."]
[4,"It looks to see if the next value is the last value in the table, if it is it retrieves a value from this row, otherwise it repeats step 3"]

{"sheet":"VLOOKUP","index":3,"n_rows":92,"n_cols":13,"rows_kept":92,"cut":false,"hidden":false,"merged":[]}
[{"$f":"ROW()&\")\"","v":"1)"},"The V in VLOOKUP means Vertical."]
["2)","VLOOKUP function returns something to a cell or formula that it found in a lookup table."]
["3)","VLOOKUP(cell you want to lookup, Lookup Table, Column Designation of value you want to return to the cell, Exact Match = 0 or approximate value = 1 (default))"]
["4)","Approximate value means that when the function sees a value that is bigger than the lookup_value, it stops and uses that row above that value."]
[{"$f":"ROW()&\")\"","v":"5)"},"For approximate value, VLOOKUP takes the value you tell it to look at, goes to the first column of the lookup table (sorted ascending) and if the first value is less than the lookup_value it returns #N/A otherwise it races down the column until it sees a value bigger than the lookup_value and then it uses the row above, then it goes to the column that you specified and gets that value, then brings it back to the cell or formula."]
["6)","Using named ranges for lookup table is usually efficient. Using Data Validation for the lookup cell helps the accuracy of your task."]
["7)","When creating the lookup_table in the formula itself: 1) enclose the table in curly brackets { }; 2) column elements are separated by commas ,; 3) row elements are separated by semicolons ;."]
[]
[1,"Example 1: Deliver value to cell. Find approximate value from column 2 of lookup table."]
[null,0,"F"]
[null,0.65,"D"]
[null,0.75,"C"]
[null,0.85,"B"]
[null,0.95,"A"]
[]
[null,"Score","Grade"]
[null,0.749]
[]
[2,"Example 2:  Deliver value to cell. Find exact value from column 2 of lookup table."]
[null,"Product 1",20]
[null,"Product 2",25]
[null,"Product 3",15]
[null,"Product 4",15]
[null,"Product 5",16]
[]
[null,"Product","Price"]
[null,{"$f":"B21","v":"Product 2"}]
[]
[3,"Example 3:  Deliver value to cell. Find value from column 2 & 3. Use COLUMN function (tells you what column you are in)."]
[null,"Product","Price","Description"]
[null,"Boom01",15,"Flying Range is 10"]
[null,"Boom02",30,"Flying Range is 20"]
[null,"Boom03",40,"Flying Range is 50"]
[null,"Boom04",45,"Flying Range is 60"]
[null,"Boom05",65,"Flying Range is 70"]
[null,"Boom06",69,"Flying Range is 80"]
[null,"Boom07",100,"Flying Range is 85"]
[null,"Boom08",110,"Flying Range is 110"]
[null,"Boom09",165,"Flying Range is 160"]
[]
[null,"Product","Price",{"$f":"D30","v":"Description"}]
[null,{"$f":"B37","v":"Boom07"}]
[]
[4,"Example 4: Use VLOOKUP to deliver a value to a formula."]
[null,"Days Late","% Late Fee"]
[null,0,0.01]
[null,30,0.02]
[null,60,0.03]
[null,90,0.05]
[]
[null,{"$f":"B45","v":"Days Late"},"Balance","Late Charge"]
[null,89,500]
[]
[5,"Example 5: Use multiple VLOOKUPs in 1 formula to deliver mutiple values to a formula. Also, Use IF function or IFERROR function to solve #N/A error problem"]
[null,"Manufacturers Plus"]
[null,"Income Statement"]
[null,"Projected Net Income For The Years Ended December 31"]
[]
[null,null,2003,{"$f":"C59+1","v":2004},{"$f":"D59+1","v":2005},{"$f":"E59+1","v":2006},{"$f":"F59+1","v":2007},{"$f":"G59+1","v":2008}]
[null,"Net Revenues",450000,{"$f":"C60*(1+$J80)","v":495000.00000000006},544500.00000000012,598950.00000000023,658845.00000000035,724729.50000000047]
[null,"Expenses",500000,510000,520200,530604,541216.07999999996,552040.40159999998]
[null,"Net Income Before Income Taxes",{"$f":"C60-C61","v":-50000},-14999.999999999942,24300.000000000116,68346.000000000233,117628.92000000039,172689.09840000048]
[null,"Tax Expense"]
[null,"Net Income",{"$f":"C62-C63","v":-50000},-14999.999999999942,24300.000000000116,68346.000000000233,117628.92000000039,172689.09840000048]
[]
[null,null,null,null,null,null,null,null,"Tax Tables 2004"]
[null,null,null,null,null,null,null,null,null,"If Taxable Income Is:"]
[null,null,null,null,null,null,null,null,"VLOOKUP\nReference","Over -","But Not Over","Tax Amount From\nPrevious Bracket","Tax Rate For\nRemaining Amount"]
[]
[null,null,null,null,null,null,null,null,0,0,50000,null,0.15]
[null,null,null,null,null,null,null,null,{"$f":"J71+1","v":50001},{"$f":"K70","v":50000},75000,{"$f":"M70*K70","v":7500},0.25]
[null,null,null,null,null,null,null,null,75001,75000,100000,{"$f":"L71+(K71-K70)*M71","v":13750},0.34]
[null,null,null,null,null,null,null,null,100001,100000,335000,22250,0.39]
[null,null,null,null,null,null,null,null,335001,335000,10000000,113900,0.34]
[null,null,null,null,null,null,null,null,10000001,10000000,15000000,3400000.0000000005,0.35]
[null,null,null,null,null,null,null,null,15000001,15000000,18333333,5150000,0.38]
[null,null,null,null,null,null,null,null,18333334,18333333,null,6416666.54,0.35]
[]
[null,null,null,null,null,null,null,null,"Assumptions"]
[null,null,null,null,null,null,null,null,"Increase In Sales",0.1]
[null,null,null,null,null,null,null,null,"Increase in Expenses",0.02]
[]
[]
[6,"Example 6: Create lookup_table in formula itself \"hard code table into formula\": 1) enclose the table in curly brackets { }; 2) column elements are separated by commas ,; 3) row elements are separated by semicolons ;. Use RANDBETWEEN to generate random integers (in 2003 you have to go to Tools menu, Add-ins, then check Analysis ToolPak\".)"]
[null,1,"Suix"]
[null,2,"Fred"]
[null,3,"Chin"]
[null,4,"Sheliadawn"]
[]
[null,"Find Name Randomly"]
[]
[null,"Find Name Randomly"]

{"sheet":"HLOOKUP","index":4,"n_rows":5,"n_cols":9,"rows_kept":5,"cut":false,"hidden":false,"merged":[]}
[{"$f":"ROW()&\")\"","v":"1)"},"HLOOKUP is the same as VLOOKUP except the H means Horizontal"]
[{"$f":"ROW()&\")\"","v":"2)"},"Most tables are vertical, not horizontal, so using HLOOKUP is rare."]
[]
[null,"Product 1","Product 2","Product 3","Product 4","Product 5",null,"Product",{"$f":"C4","v":"Product 2"}]
[null,20,25,15,15,16,null,"Price"]

{"sheet":"LOOKUP","index":5,"n_rows":16,"n_cols":6,"rows_kept":16,"cut":false,"hidden":false,"merged":[]}
[{"$f":"ROW()&\")\"","v":"1)"},"Although LOOKUP was one of the first functions in a spreadsheet, the VLOOKUP can do almost everything that the LOOKUP does and more. The one thing that the LOOKUP can do that the VLOOKUP (or HLOOKUP) can't do is retrieve a value to the left or above a lookup_value column or row; it can also have a column and a row area. LOOKUP function must have the lookup_vector sorted in ascending order. LOOKUP looks up the greatest value that does not exceed a specified value anywhere in a table or range."]
[{"$f":"ROW()&\")\"","v":"2)"}]
[]
[null,"Product","Price","Description"]
[null,"Boom01",15,"Flying Range is 10"]
[null,"Boom08",110,"Flying Range is 110"]
[null,"Boom09",165,"Flying Range is 160"]
[null,"Boom02",30,"Flying Range is 20"]
[null,"Boom03",40,"Flying Range is 50"]
[null,"Boom04",45,"Flying Range is 60"]
[null,"Boom05",65,"Flying Range is 70"]
[null,"Boom06",69,"Flying Range is 80"]
[null,"Boom07",100,"Flying Range is 85"]
[]
[null,null,null,"Description",null,"Product"]
[null,null,null,"Flying Range is 60"]

{"sheet":"MATCH","index":6,"n_rows":20,"n_cols":8,"rows_kept":20,"cut":false,"hidden":false,"merged":[[7,0,15,0]]}
[{"$f":"ROW()&\")\"","v":"1)"},"The MATCH function looks up a value and tells you what relative position it is in the list."]
[{"$f":"ROW()&\")\"","v":"2)"},"If match_type is 1, MATCH finds the largest value that is less than or equal to lookup_value. Lookup_array must be placed in ascending order: ...-2, -1, 0, 1, 2, ..., A-Z, FALSE, TRUE."]
["3)","If match_type is 0, MATCH finds the first value that is exactly equal to lookup_value. Lookup_array can be in any order."]
["4)","If match_type is -1, MATCH finds the smallest value that is greater than or equal to lookup_value. Lookup_array must be placed in descending order: TRUE, FALSE, Z-A, ...2, 1, 0, -1, -2, ..., and so on."]
["5)","If match_type is omitted, it is assumed to be 1."]
[]
[null,null,"Allowances"]
["Income",null,0,1,2,3,4,5]
[null,0,{"$f":"ROW()-COLUMN()","v":6},5,4,3,2,1]
[null,100,7,6,5,4,3,2]
[null,200,8,7,6,5,4,3]
[null,300,9,8,7,6,5,4]
[null,400,10,9,8,7,6,5]
[null,500,11,10,9,8,7,6]
[null,600,12,11,10,9,8,7]
[null,700,13,12,11,10,9,8]
[]
[null,null,null,"Relative Position in list"]
[null,"Income",250]
[null,"Allowances",2]

{"sheet":"INDEX","index":7,"n_rows":46,"n_cols":12,"rows_kept":46,"cut":false,"hidden":false,"merged":[[6,0,14,0],[30,2,30,5],[39,2,39,5]]}
[{"$f":"ROW()&\")\"","v":"1)"},"INDEX has 2 different uses: 1) look up a value that is at the intersection of a row and column, or 2) look up a specific table and then within that specific table look up a value that is at the intersection of a row and column."]
[{"$f":"ROW()&\")\"","v":"2)"},"Good when you have more than one table to look values up in. (non-contiguous ranges must be in parenthesis and stored all on the same worksheet). You can also have a table with intersection lookup values where INDEX and MATCH can be used together to look up labels and return intersection of two labels. Also can be used as a replacement for VLOOKUP when the data you want to retrieve is to the left of the lookup column."]
["3)","Example 1: Look up a value that is at the intersection of a row and column."]
["4)","Example 2: Look up a specific table and then within that specific table look up a value that is at the intersection of a row and column."]
[]
[1,null,"Allowances"]
["Income",null,0,1,2,3,4,5]
[null,0,6,5,4,3,2,1]
[null,100,7,6,5,4,3,2]
[null,200,8,7,6,5,4,3]
[null,300,9,8,7,6,5,4]
[null,400,10,9,8,7,6,5]
[null,500,11,10,9,8,7,6]
[null,600,12,11,10,9,8,7]
[null,700,13,12,11,10,9,8]
[]
[null,null,null,"Relative Position in list",null,"Tax"]
[null,"Income",250,{"$f":"MATCH(C18,B8:B15,1)","v":3}]
[null,"Allowances",2,{"$f":"MATCH(C19,C7:H7,0)","v":3}]
[]
[2,"Customer Type 10",null,null,null,null,null,"Region",null,"Shipping Method",null,"Customer Type "]
[null,null,"Shipping Method - Standard  ",null,null,null,null,"NW",null,"Rail",null,"Customer Type 10"]
[null,"Region","Rail","Truck","Plane","Ship",null,"West",null,"Truck",null,"Customer Type 20"]
[null,"NW",0.125,0.13500000000000001,1.5249999999999999,0.22500000000000001,null,"SW",null,"Plane",null,"Customer Type 30"]
[null,"West",0.20499999999999999,0.14499999999999999,2.0249999999999999,0.245,null,"MidWest",null,"Ship"]
[null,"SW",0.26500000000000001,0.16500000000000001,2.125,0.22500000000000001,null,"East"]
[null,"MidWest",0.30500000000000005,0.185,2.2749999999999999,0.22500000000000001]
[null,"East",0.47500000000000003,0.42500000000000004,3.5249999999999999,0.375,null,null,null,"Region"]
[null,null,null,null,null,null,null,null,null,"West"]
[null,"Customer Type 20",null,null,null,null,null,null,null,"Shipping Method"]
[null,null,"Shipping Method - Preferred ",null,null,null,null,null,null,"Truck"]
[null,"Region","Rail","Truck","Plane","Ship",null,null,null,"Customer Type "]
[null,"NW",0.11499999999999999,0.125,1.375,0.20499999999999999,null,null,null,"Customer Type 20"]
[null,"West",0.185,0.13500000000000001,1.825,0.215,null,null,null,"Shipping per Unit"]
[null,"SW",0.245,0.155,1.9149999999999998,0.20499999999999999]
[null,"MidWest",0.27500000000000002,0.16500000000000001,2.0549999999999997,0.20499999999999999]
[null,"East",0.435,0.38500000000000001,3.1749999999999998,0.34500000000000003]
[]
[null,"Customer Type 30"]
[null,null,"Shipping Method - Most Preferred "]
[null,"Region","Rail","Truck","Plane","Ship"]
[null,"NW",0.10500000000000001,0.11499999999999999,1.2449999999999999,0.17499999999999999]
[null,"West",0.17499999999999999,0.125,1.645,0.16500000000000001]
[null,"SW",0.215,0.13500000000000001,1.7249999999999999,0.185]
[null,"MidWest",0.255,0.155,1.845,0.185]
[null,"East",0.38500000000000001,0.34500000000000003,2.8649999999999998,0.30500000000000005]

{"sheet":"MATCH & INDEX","index":8,"n_rows":62,"n_cols":12,"rows_kept":62,"cut":false,"hidden":false,"merged":[[6,0,14,0],[46,2,46,5],[55,2,55,5]]}
[{"$f":"ROW()&\")\"","v":"1)"},"INDEX has 2 different uses: 1) look up a value that is at the intersection of a row and column, or 2) look up a specific table and then within that specific table look up a value that is at the intersection of a row and column."]
[{"$f":"ROW()&\")\"","v":"2)"},"The MATCH function looks up a value and tells you what relative position it is in the list."]
[{"$f":"ROW()&\")\"","v":"3)"},"Good when you have more than one table to look values up in. (non-contiguous ranges must be in parenthesis and stored all on the same worksheet). You can also have a table with intersection lookup values where INDEX and MATCH can be used together to look up labels and return intersection of two labels. Also can be used as a replacement for VLOOKUP when the data you want to retrieve is to the left of the lookup column."]
[]
[1,"Example 1: INDEX and MATCH can be used together to look up labels and return intersection of two labels"]
[null,null,"Allowances"]
["Income",null,0,1,2,3,4,5]
[null,0,6,5,4,3,2,1]
[null,100,7,6,5,4,3,2]
[null,200,8,7,6,5,4,3]
[null,300,9,8,7,6,5,4]
[null,400,10,9,8,7,6,5]
[null,500,11,10,9,8,7,6]
[null,600,12,11,10,9,8,7]
[null,700,13,12,11,10,9,8]
[]
[null,null,null,null,"Tax"]
[null,"Income",250]
[null,"Allowances",2]
[]
[2,"Example 2: Use INDEX as a substitute for VLOOKUP when the value you want to return is to the left of the lookup column."]
[null,"Product","Price","Description"]
[null,"Boom01",15,"Flying Range is 10"]
[null,"Boom02",30,"Flying Range is 20"]
[null,"Boom03",40,"Flying Range is 50"]
[null,"Boom04",45,"Flying Range is 60"]
[null,"Boom05",65,"Flying Range is 70"]
[null,"Boom06",69,"Flying Range is 80"]
[null,"Boom07",100,"Flying Range is 85"]
[null,"Boom08",110,"Flying Range is 110"]
[null,"Boom09",165,"Flying Range is 160"]
[]
[null,null,null,"Description",null,"Product"]
[null,null,null,"Flying Range is 60"]
[]
[3,"Example 3: Use INDEX and MATCH for looking up a specific table and then within that specific table looking up a value that is at the intersection of a row and column."]
[null,"Customer Type 10",null,null,null,null,null,"Region",null,"Shipping Method",null,"Customer Type "]
[null,null,"Shipping Method - Standard  ",null,null,null,null,"NW",null,"Rail",null,"Customer Type 10"]
[null,"Region","Rail","Truck","Plane","Ship",null,"West",null,"Truck",null,"Customer Type 20"]
[null,"NW",0.125,0.13500000000000001,1.5249999999999999,0.22500000000000001,null,"SW",null,"Plane",null,"Customer Type 30"]
[null,"West",0.20499999999999999,0.14499999999999999,2.0249999999999999,0.245,null,"MidWest",null,"Ship"]
[null,"SW",0.26500000000000001,0.16500000000000001,2.125,0.22500000000000001,null,"East"]
[null,"MidWest",0.30500000000000005,0.185,2.2749999999999999,0.22500000000000001]
[null,"East",0.47500000000000003,0.42500000000000004,3.5249999999999999,0.375,null,null,null,"Region"]
[null,null,null,null,null,null,null,null,null,"West"]
[null,"Customer Type 20",null,null,null,null,null,null,null,"Shipping Method"]
[null,null,"Shipping Method - Preferred ",null,null,null,null,null,null,"Truck"]
[null,"Region","Rail","Truck","Plane","Ship",null,null,null,"Customer Type "]
[null,"NW",0.11499999999999999,0.125,1.375,0.20499999999999999,null,null,null,"Customer Type 20"]
[null,"West",0.185,0.13500000000000001,1.825,0.215,null,null,null,"Shipping per Unit"]
[null,"SW",0.245,0.155,1.9149999999999998,0.20499999999999999]
[null,"MidWest",0.27500000000000002,0.16500000000000001,2.0549999999999997,0.20499999999999999]
[null,"East",0.435,0.38500000000000001,3.1749999999999998,0.34500000000000003]
[]
[null,"Customer Type 30"]
[null,null,"Shipping Method - Most Preferred "]
[null,"Region","Rail","Truck","Plane","Ship"]
[null,"NW",0.10500000000000001,0.11499999999999999,1.2449999999999999,0.17499999999999999]
[null,"West",0.17499999999999999,0.125,1.645,0.16500000000000001]
[null,"SW",0.215,0.13500000000000001,1.7249999999999999,0.185]
[null,"MidWest",0.255,0.155,1.845,0.185]
[null,"East",0.38500000000000001,0.34500000000000003,2.8649999999999998,0.30500000000000005]

{"sheet":"CHOOSE","index":9,"n_rows":5,"n_cols":3,"rows_kept":5,"cut":false,"hidden":false,"merged":[]}
[{"$f":"ROW()&\")\"","v":"1)"},"CHOOSE can return a value or a range from a list of 1 to 254 arguments."]
[{"$f":"ROW()&\")\"","v":"2)"}]
[]
[null,"Select Garbage Duty for Week",{"$f":"CHOOSE(RANDBETWEEN(1,4),\"Suix\",\"Joel\",\"Chin\",\"Fred\")","v":"Suix"}]
[null,"Select Garbage Duty for Week",{"$f":"VLOOKUP(RANDBETWEEN(1,4),{1,\"Suix\";2,\"Joel\";3,\"Chin\";4,\"Fred\"},2)","v":"Suix"}]

{"sheet":"Intersector Operator","index":10,"n_rows":23,"n_cols":7,"rows_kept":23,"cut":false,"hidden":false,"merged":[]}
[{"$f":"ROW()&\")\"","v":"1)"},"Ctrl + Shift + F3 \"Create Names From Selection\""]
[{"$f":"ROW()&\")\"","v":"2)"},"A space is the intersector operator "]
["3)"]
["4)"]
["5)"]
[]
[null,null,"Dept01","Dept02","Dept03","Dept04","Dept05"]
[null,"Jan",{"$f":"1000*(ROW()-COLUMN())-RANDBETWEEN(0,500)","v":4962},3699,2551,1524,616]
[null,"Feb",5617,4793,3901,2548,1803]
[null,"Mar",6877,5761,4832,3618,2774]
[null,"Apr",7873,6964,5856,4640,3843]
[null,"May",8576,7502,6735,5690,4997]
[null,"Jun",9928,8730,7751,6576,5501]
[null,"Jul",10794,9572,8566,7976,6636]
[null,"Aug",11603,10671,9577,8533,7630]
[null,"Sep",12560,11953,10585,9643,8641]
[null,"Oct",13746,12933,11869,10551,9876]
[null,"Nov",14683,13760,12527,11923,10924]
[null,"Dec",15998,14767,13813,12759,11948]
[]
[null,null,null,"Type Intersection in:"]
[null,{"$f":"B11","v":"Apr"}]
[null,{"$f":"F7","v":"Dept04"}]